[Event "XTX Markets London Classic-Elite 2024"]
[Site "London"]
[Date "2024.12.03"]
[Round "5.4"]
[White "Royal, Shreyas"]
[Black "Vidit, Santosh Gujrathi"]
[Result "1/2-1/2"]
[WhiteElo "2520"]
[BlackElo "2739"]
[Annotator "TA"]
[PlyCount "97"]
[EventDate "2024.??.??"]
[TimeControl "60"]

{[%evp 24,97,40,39,35,55,64,64,46,70,64,78,77,-32,-25,-33,-34,-72,-65,-214,-212,-239,-236,-210,-69,-99,-106,-106,-97,-106,-108,-107,-102,-158,-141,-150,-159,-151,-160,-159,-170,-149,0,0,0,0,0,0,0,0,0,-116,0,0,51,63,63,0,0,0,0,0,0,0,0,0,0,0,0,0,0,0,0,0,0,0]} 1. d4 {[%emt 0:00:05]} d5 {[%emt 0:01:10]} 2. Nf3 {[%emt 0:00:29]} Nf6 {[%emt 0:00:55]} 3. Bf4 {[%emt 0:00:07]} e6 {[%emt 0:02:35]} 4. e3 {[%emt 0:00:12]} Bd6 {[%emt 0:00:20]} 5. Ne5 {[%emt 0:01:40]} O-O {[%emt 0:00:27]} 6. Bd3 {[%emt 0:02:47]} c5 {[%emt 0:00:37]} 7. c3 {[%emt 0:00:38]} Qc7 {[%emt 0:00:47] D02: 1 d4 d5 2 Nf3 sidelines, including 2...Nf6 3 g3 and 2...Nf6 3 Bf4.} 8. Nd2 {[%emt 0:00:39]} a5 $146 {[%emt 0:13:28]} ({RR} 8... Nc6 9. Ndf3 b6 10. Bg3 Ne4 11. O-O Nxg3 12. hxg3 Nxe5 13. dxe5 Bxe5 14. Nxe5 Qxe5 15. Bc2 Ba6 16. Re1 Qf6 17. Qh5 h6 18. Rad1 Rad8 19. Qg4 Rfe8 20. Qa4 Bc4 21. Qxa7 Ra8 22. Qxb6 Rxa2 23. Bb1 {Antonio,J (2277)-Politov,P (2190) Chess.com INT 2022 0-1 (56)}) ({RR} 8... b6 9. h4 Ba6 10. Bxa6 Nxa6 11. h5 h6 12. Rh3 cxd4 13. exd4 Nc5 14. Kf1 Nfe4 15. Nxe4 Nxe4 16. Qg4 Nf6 17. Qe2 Ne4 18. Qg4 Nf6 19. Qh4 Ne4 20. Re3 Bxe5 21. Bxe5 Qd7 22. Kg1 f6 23. Bh2 {Erigaisi,A (2762)-Keymer,V (2726) Warsaw POL 2024 ½-½ (56)}) ({RR} 8... Nbd7 9. Nxd7 Nxd7 10. Bxd6 Qxd6 11. f4 c4 12. Bc2 b5 13. O-O Bb7 14. Rf3 f5 15. Rh3 g6 16. Nf3 Rf7 17. Qe1 Qe7 18. a4 bxa4 19. Bxa4 Nb6 20. Ne5 Rg7 21. Rh6 Nc8 22. h3 {½-½ (22) Rathbone-Jones,I (2134)-Rees,I (2262) Sutton Coldfield ENG 2024}) ({RR} 8... Nbd7 9. Ndf3 Ne4 10. O-O f6 11. Bxe4 dxe4 12. Nxd7 Bxd7 13. Bxd6 Qxd6 14. dxc5 Qc7 15. Nd2 f5 16. b4 Bc6 17. Nb3 Rad8 18. Qc2 f4 19. exf4 Qxf4 20. Nd4 Bd5 21. Rae1 e5 22. Nb5 Qg5 23. c4 {Antonio,J (2277)-Tarasova,V (2226) chess.com INT 2023 1-0}) 9. h4 {[%emt 0:12:39]} a4 {[%emt 0:01:24]} 10. a3 {[%emt 0:06:10]} Nc6 {[%emt 0:01:13]} 11. Ndf3 {[%emt 0:01:13]} Ne4 {[%emt 0:01:37]} 12. Ng5 $146 {[%emt 0:31:54]} ({Predecessor:} 12. Nxc6 Bxf4 13. Ne7+ Qxe7 14. exf4 cxd4 15. cxd4 Qc7 16. g3 Qa5+ 17. Kf1 Bd7 18. Qe2 {0-1 Sourath,B (2265)-Prraneeth,V (2437) Fagernes op-A 2023 (3)}) 12... cxd4 {[%emt 0:31:20]} (12... f6 $11 13. Nxc6 Bxf4) 13. Nxc6 $14 {[%emt 0:04:46]} bxc6 {[%emt 0:10:32]} 14. Bxe4 {[%emt 0:01:20]} dxe4 {[%emt 0:00:30]} 15. Bxd6 {[%emt 0:04:18]} Qxd6 {[%emt 0:00:01]} 16. Nxe4 {[%emt 0:01:09]} Qd5 {[%emt 0:02:48]} 17. Qxd4 {[%emt 0:00:48]} Rb8 {[%emt 0:00:15]} 18. Qxa4 {[%emt 0:03:47]} (18. O-O $16) 18... f5 $1 $15 {[%emt 0:02:19]} 19. Ng3 {[%emt 0:05:31]} Qxg2 {[%emt 0:00:49]} 20. Qc2 {[%emt 0:00:05]} Rd8 {[%emt 0:02:55]} 21. c4 {[%emt 0:03:22]} (21. Rd1 $15 Ba6 22. h5) 21... c5 $19 {[%emt 0:08:21]} 22. h5 {[%emt 0:02:33]} h6 {[%emt 0:01:20]} 23. Rf1 {[%emt 0:01:31]} e5 {[%emt 0:10:07]} (23... Bb7 $19 {Threatens to win with ...Bf3.} 24. Rd1 Bf3) 24. Rd1 $15 {[%emt 0:05:56]} Be6 {[%emt 0:02:32]} 25. Rxd8+ {[%emt 0:01:23]} Rxd8 {[%emt 0:00:01]} 26. Nxf5 {[%emt 0:01:27] [#]} Qg5 $1 {[%emt 0:00:44]} 27. Ng3 {[%emt 0:01:28]} Bg4 {[%emt 0:00:50]} 28. Ne4 {[%emt 0:01:41]} (28. Ne2 $142) 28... Qf5 $17 {[%emt 0:00:50]} (28... Qxh5 29. Nd2 $15 (29. Rg1 $2 Qf5 $19)) 29. f3 {[%emt 0:00:55]} Bxf3 {[%emt 0:00:37]} (29... Bxh5 30. Qe2 $17) 30. Qe2 {[%emt 0:00:08]} Qxe4 {[%emt 0:01:42]} (30... Rf8 31. Rxf3 Qxf3 32. Qxf3 Rxf3 33. Nxc5) 31. Rxf3 {[%emt 0:00:17] [#]} Qb1+ $1 {[%emt 0:01:18]} 32. Kf2 {[%emt 0:00:01]} Qc1 {[%emt 0:00:44]} (32... Rd1 $17 33. Rh3 Qc1) 33. Kg3 $1 $11 {[%emt 0:00:37]} Rd1 {[%emt 0:00:45]} 34. Rf2 {[%emt 0:01:32]} Re1 {[%emt 0:01:00]} 35. Qd2 {[%emt 0:01:24]} Rg1+ {[%emt 0:00:27]} (35... Rxe3+ 36. Kg2 Qxd2 37. Rxd2) 36. Kf3 {[%emt 0:00:27]} Qxc4 {[%emt 0:00:35]} 37. Qd7 {[%emt 0:01:42]} (37. Rg2 $1 $11 {was the only way to keep the balance.} Rf1+ 38. Rf2) 37... e4+ {[%emt 0:00:31]} (37... Rg5 $17 {[%cal Og8h7] Strongly threatening ...Kh7!} 38. Rd2 Qf1+ (38... Rxh5 $2 {too greedy.} 39. Qe8+ Kh7 40. Qxh5 $18) 39. Ke4 Kh7 (39... Rxh5 $2 {is the wrong capture.} 40. Qe8+ Qf8 41. Qxh5 $18)) 38. Kf4 $11 {[%emt 0:00:06]} Rg5 {[%emt 0:00:31]} (38... Kh7 $11) 39. Qe8+ $1 $14 {[%emt 0:01:34]} Kh7 {[%emt 0:00:02]} 40. a4 {[%emt 0:01:30]} ({White should try} 40. Qxe4+ $14 Qxe4+ 41. Kxe4 Rxh5 42. Rf1) 40... Qc1 {[%emt 0:00:57]} 41. Qxe4+ {[%emt 0:02:52]} Kh8 {[%emt 0:00:40]} 42. Qa8+ {[%emt 0:05:57]} Kh7 {[%emt 0:00:02]} 43. Qe4+ {[%emt 0:00:05]} Kh8 {[%emt 0:00:03]} 44. Qe8+ {[%emt 0:00:34]} Kh7 {[%emt 0:00:02]} 45. Qe4+ {[%emt 0:00:18]} Kh8 {[%emt 0:00:08]} 46. Qa8+ {[%emt 0:00:04]} Kh7 {[%emt 0:00:04]} 47. Qe4+ {[%emt 0:00:04]} Kh8 {[%emt 0:00:04]} 48. Qe8+ {[%emt 0:00:14]} Kh7 {[%emt 0:00:08]} 49. Qe4+ {[%emt 0:00:03]} 1/2-1/2

[Event "XTX Markets London Classic-Elite 2024"]
[Site "London"]
[Date "2024.12.05"]
[Round "6.1"]
[White "Ju, Wenjun"]
[Black "Vidit, Santosh Gujrathi"]
[Result "1/2-1/2"]
[WhiteElo "2563"]
[BlackElo "2739"]
[Annotator "TA"]
[PlyCount "65"]
[EventDate "2024.??.??"]
[TimeControl "60"]

{[%evp 17,65,0,0,0,0,0,0,0,0,0,0,0,16,0,0,0,0,0,0,-7,7,0,0,-2,0,0,0,-8,0,0,0,0,0,0,0,0,0,0,0,0,0,0,0,0,0,0,0,0,0,0]} 1. Nf3 {[%emt 0:00:05]} c5 {[%emt 0:03:32]} 2. c4 {[%emt 0:00:55]} Nc6 {[%emt 0:00:58]} 3. d4 {[%emt 0:08:50]} cxd4 {[%emt 0:00:09]} 4. Nxd4 {[%emt 0:00:02]} Nf6 {[%emt 0:02:07]} 5. Nc3 {[%emt 0:00:04]} e6 {[%emt 0:00:25]} 6. a3 {[%emt 0:00:22]} Bc5 {[%emt 0:02:43]} 7. e3 {[%emt 0:00:11]} d5 {[%emt 0:02:11]} 8. cxd5 {[%emt 0:03:30]} exd5 {[%emt 0:00:29]} 9. Be2 {[%emt 0:02:12]} ({RR} 9. Bb5 Qd6 10. b4 Bb6 11. Bb2 O-O 12. Na4 Bc7 13. Bxc6 bxc6 14. Rc1 Bd7 15. Nc5 Bc8 16. Qa4 Ng4 17. Qxc6 Qe5 18. Nd7 Qe4 19. Qxc7 Qxg2 20. Rf1 Nxh2 21. Ke2 Nxf1 22. Nf6+ gxf6 23. Rxf1 Bg4+ {Ostojic,N (2254)-Atakisi,U (2302) Novi Pazar SRB 2024 0-1 (47)}) 9... O-O {[%emt 0:00:11] The position is equal.} 10. O-O {[%emt 0:00:03]} Re8 {[%emt 0:00:41]} 11. b4 {[%emt 0:08:51]} Nxd4 $146 {[%emt 0:20:55]} ({RR} 11... Bd6 12. Ncb5 Nxd4 13. Nxd4 Ne4 14. Bb2 Qh4 15. f4 Qe7 16. Bb5 Rd8 17. Bd3 a5 18. b5 Bd7 19. Re1 Rac8 20. Qh5 Nf6 21. Qh4 Ne4 22. Qh5 Be6 23. Nf5 Bxf5 24. Qxf5 Bc5 25. Rac1 g6 26. Qh3 {Blagojevic,M (2195)-Sokac,M (2325) Mali Losinj 2019 ½-½ (51)}) ({RR} 11... Bb6 12. Ncb5 Ne5 13. Nf3 Nc6 14. Bb2 Ne4 15. Rc1 Bg4 16. Nfd4 Bxe2 17. Qxe2 Qd7 18. Nxc6 bxc6 19. Nd4 Rac8 20. Rfd1 f6 21. Rc2 Nd6 22. Nf3 Qb7 23. Bd4 Nc4 24. Qd3 a5 25. h3 axb4 26. axb4 {Christiansen,L (2577)-De Firmian,N (2496) Saint Louis 2022 ½-½ (32)}) 12. bxc5 {[%emt 0:05:47]} Ne6 {[%emt 0:00:26]} 13. Bf3 {[%emt 0:03:10][%cal Rc3d5]} Nxc5 {[%emt 0:00:58]} 14. Nxd5 {[%emt 0:02:43]} Be6 {[%emt 0:00:57][%cal Re6d5] [#]} 15. Bb2 $1 {[%emt 0:13:25]} Bxd5 {[%emt 0:07:34]} (15... Nxd5 $5 16. Qd4 $8 Qf6 17. Bxd5 Bxd5 18. Qxd5 Qe7 $16) 16. Bxf6 {[%emt 0:00:06]} Qxf6 {[%emt 0:00:13]} 17. Qxd5 {[%emt 0:00:04]} Rac8 {[%emt 0:00:34]} 18. a4 {[%emt 0:03:42]} Red8 {[%emt 0:08:04]} 19. Qa2 {[%emt 0:00:08]} b6 {[%emt 0:01:07]} 20. h3 {[%emt 0:11:49]} a5 {[%emt 0:09:34]} 21. Rfd1 {[%emt 0:03:14]} Nd3 {[%emt 0:08:54]} 22. Qe2 {[%emt 0:03:55]} g6 {[%emt 0:01:13]} 23. Rab1 {[%emt 0:01:32]} Rc3 {[%emt 0:01:46]} 24. Rd2 {[%emt 0:09:02] [#] And now Rbd1 would win.} Nb4 {[%emt 0:02:33]} 25. Rxd8+ {[%emt 0:02:50]} Qxd8 {[%emt 0:00:02]} 26. Rd1 {[%emt 0:00:05]} Qc7 {[%emt 0:02:21]} 27. Qb2 {[%emt 0:08:27]} Rc2 {[%emt 0:05:56]} 28. Qf6 {[%emt 0:01:22] Rd8+ is the strong threat.} Rc1 {[%emt 0:00:08]} 29. Rxc1 {[%emt 0:00:05]} Qxc1+ {[%emt 0:00:06]} 30. Kh2 {[%emt 0:00:03] Strongly threatening Qd8+.} Qc7+ {[%emt 0:00:40]} 31. Kg1 {[%emt 0:03:35]} Qc1+ {[%emt 0:06:32]} 32. Kh2 {[%emt 0:00:03]} Qc7+ {[%emt 0:02:48]} 33. Kg1 {[%emt 0:01:25] An interesting draw. Weighted Error Value: White=0.02 (flawless) /Black=0.02 (flawless) . OK: 	White=7 	Black=12 Best: 	White=3 	Black=1} 1/2-1/2

[Event "XTX Markets London Classic-Elite 2024"]
[Site "London"]
[Date "2024.12.05"]
[Round "6.2"]
[White "Vitiugov, Nikita"]
[Black "Royal, Shreyas"]
[Result "1-0"]
[WhiteElo "2668"]
[BlackElo "2520"]
[Annotator "TA"]
[PlyCount "89"]
[EventDate "2024.??.??"]
[TimeControl "60"]

{[%evp 13,89,0,0,-13,0,-8,0,-7,0,-20,0,0,61,56,71,74,73,73,77,77,69,42,89,53,60,29,35,37,52,28,31,13,26,7,0,0,0,0,18,7,45,42,25,0,0,0,0,0,0,0,0,0,0,0,12,0,93,92,92,64,64,38,164,104,213,8,8,8,278,270,29993,29994,29994,29995,29995,29996,29996,29997]} 1. e4 {[%emt 0:00:07]} c6 {[%emt 0:00:10]} 2. d4 {[%emt 0:00:15]} d5 {[%emt 0:00:06]} 3. e5 {[%emt 0:00:47]} c5 {[%emt 0:00:05]} 4. Nf3 {[%emt 0:00:17]} cxd4 {[%emt 0:01:40]} 5. Qxd4 {[%emt 0:00:34]} Nc6 {[%emt 0:00:45]} 6. Qf4 {[%emt 0:00:08] B12: Caro-Kann: Advance Variation.} e6 {[%emt 0:00:12]} 7. Nc3 {[%emt 0:01:27]} Nb4 {[%emt 0:02:42]} 8. Bd3 {[%emt 0:00:48]} Nxd3+ {[%emt 0:00:14]} 9. cxd3 {[%emt 0:00:08]} Ne7 {[%emt 0:00:44]} 10. h4 {[%emt 0:01:02]} h5 {[%emt 0:00:06]} 11. Bd2 {[%emt 0:01:28]} Nf5 {[%emt 0:02:09]} ({RR} 11... Ng6 12. Qg3 Bd7 13. Ne2 Qb6 14. Bc3 Be7 15. Nf4 Rh6 16. Ne2 Qa6 17. Nfd4 Qb6 18. Rd1 Rc8 19. a3 Bxa3 20. bxa3 Rxc3 21. Nxc3 Qxd4 22. Ne2 Qxe5 23. f4 Qf6 24. Rb1 Ne7 25. f5 e5 26. Rxb7 {LCZero 0.31-dag-5350a2e-BT4-6 (3631)-Stockfish dev-20240728-2343f7 (3662) tcec-chess.com INT 2024 ½-½ (38)}) 12. Ne2 {[%emt 0:03:31]} a5 $146 {[%emt 0:01:16]} (12... Qb6 $11) ({Predecessor:} 12... Bd7 13. Rh3 Qb6 14. Bc3 g6 15. Kf1 Rc8 16. Ned4 Bb5 17. Ng5 Bc5 18. Nxf5 gxf5 {1-0 Mahdavi,R (2357)-Muthaiah,A (2494) Dubai Police op-A 2024 (1)}) ({RR} 12... Qb6 13. Bc3 Qa6 14. Qd2 Be7 {½-½ (14) Liu,E (2332)-Galyas,M (2423) Sunnyvale USA 2024}) ({RR} 12... Bd7 13. Rh3 Qb6 14. Bc3 g6 15. Kf1 Rc8 16. Ned4 Bb5 17. Ng5 Bc5 18. Nxf5 gxf5 19. a4 d4 20. axb5 dxc3 21. bxc3 Qxb5 22. Kg1 Qb2 23. Rd1 Qe2 24. Qa4+ Kf8 25. d4 Be7 26. Rb1 Bxg5 27. hxg5 {Mahdavi,R (2353)-Muthaiah AL (2493) Dubai Police Officers Club, AE 2024 1-0 (35)}) 13. Ng3 $14 {[%emt 0:06:19]} Be7 {[%emt 0:09:31]} 14. Nxf5 {[%emt 0:08:34]} exf5 {[%emt 0:00:02]} 15. Qg3 {[%emt 0:00:25]} g6 {[%emt 0:00:05]} 16. O-O {[%emt 0:02:25]} O-O {[%emt 0:01:44]} 17. Rac1 {[%emt 0:04:32]} Bd7 {[%emt 0:00:37]} (17... Re8 $14 {should be considered.}) 18. Be3 {[%emt 0:08:25]} d4 {[%emt 0:06:12]} 19. Bg5 {[%emt 0:09:50]} Bxg5 {[%emt 0:02:31]} 20. Nxg5 {[%emt 0:00:16]} Qb6 {[%emt 0:06:34]} 21. Qf4 {[%emt 0:04:13]} Be6 {[%emt 0:22:49]} 22. Nf3 {[%emt 0:06:27]} Kg7 {[%emt 0:03:46]} 23. Qxd4 {[%emt 0:09:20]} Qxd4 {[%emt 0:06:27]} 24. Nxd4 {[%emt 0:00:02]} Bxa2 {[%emt 0:00:08]} 25. Nb5 {[%emt 0:00:20]} Ra6 {[%emt 0:03:41]} 26. Rc5 {[%emt 0:01:54]} Rc6 {[%emt 0:02:56]} 27. Rfc1 {[%emt 0:03:39]} Rfc8 {[%emt 0:00:01]} 28. d4 {[%emt 0:07:13]} Rxc5 {[%emt 0:06:51]} 29. dxc5 {[%emt 0:01:06]} Bd5 {[%emt 0:03:37]} 30. Nd6 {[%emt 0:02:10]} Ra8 {[%emt 0:00:01]} 31. f3 {[%emt 0:03:50]} a4 {[%emt 0:01:16]} 32. Rc3 {[%emt 0:01:19]} Bc6 {[%emt 0:00:40]} 33. Kf2 {[%emt 0:01:16]} Ra6 {[%emt 0:01:13]} 34. Kg3 {[%emt 0:04:37]} b5 {[%emt 0:01:08]} (34... Ra5 $11) 35. cxb6 $1 $16 {[%emt 0:00:26]} Rxb6 {[%emt 0:00:01]} 36. Kf4 $1 {[%emt 0:02:13]} Bd5 {[%emt 0:04:20]} 37. Rc5 $1 {[%emt 0:00:28]} Be6 {[%emt 0:00:28]} (37... Bb7 $1 $14) 38. Rb5 $18 {[%emt 0:00:46]} Rc6 {[%emt 0:00:59]} (38... Ra6 $16) 39. Rb4 $2 {[%emt 0:06:34]} (39. Kg5 $1 $18) 39... Rc2 $11 {[%emt 0:00:23]} 40. g3 {[%emt 0:00:15]} Bb3 $2 {[%emt 0:05:04][%mdl 8192]} (40... Rf2 $11 {and Black is okay.}) 41. Kg5 $1 $18 {[%emt 0:09:39]} Rg2 $2 {[%emt 0:00:13]} (41... Rxb2 $2 {is the wrong capture.} 42. Rb8 Bd5 43. Rxb2 $18) (41... Re2 $18) 42. Ne8+ $1 {[%emt 0:02:12]} Kh7 {[%emt 0:01:20]} 43. Nf6+ {[%emt 0:02:51]} Kg7 {[%emt 0:00:11] [#]} 44. g4 $1 {[%emt 0:01:47]} fxg4 {[%emt 0:07:12] [#]} 45. f4 $1 {[%emt 0:01:15]} 1-0